fUSD/lending_fUSD_20241002
["ID","MTS","AMOUNT","RATE_DAILY","PERIOD"]
[339689712,1727869844791,-1133.03,0.00021917,2]
[339689714,1727869844802,-500.0,0.00021917,2]
[339689716,1727869844812,-500.0,0.00021917,2]
[339689718,1727869844822,-500.0,0.00021917,2]
[339689720,1727869844831,-500.0,0.00021917,2]
[339689722,1727869844842,-500.0,0.00021917,2]
[339689724,1727869844851,-500.0,0.00021917,2]
[339689726,1727869844862,-2644.67,0.00021917,2]
[339689728,1727869844872,-500.0,0.00021917,2]
[339689730,1727869844882,-1029.87,0.00021917,2]
[339689732,1727869844892,-693.45,0.00021917,2]
[339689734,1727869844902,-911.95,0.00021917,2]
[339689736,1727869844916,-500.0,0.00021917,2]
[339689738,1727869844926,-500.0,0.00021917,2]
[339689740,1727869844936,-500.0,0.00021917,2]
[339689742,1727869844946,-680.01,0.00021917,2]
[339689744,1727869844958,-2554.46,0.00021917,2]
[339689746,1727869844968,-500.0,0.00021917,2]
[339689748,1727869844978,-3104.41,0.00021917,2]
[339689750,1727869844990,-1531.89,0.00021917,2]
[339689752,1727869845000,-500.0,0.00021917,2]
[339689754,1727869845010,-854.9,0.00021917,2]
[339689756,1727869845020,-500.0,0.00021917,2]
[339689758,1727869845031,-500.0,0.00021917,2]
[339689760,1727869845040,-500.0,0.00021917,2]
[339689762,1727869845050,-500.0,0.00021917,2]
[339689764,1727869845061,-914.75,0.00021917,2]
[339689766,1727869845071,-500.0,0.00021917,2]
[339689768,1727869845082,-1482.48,0.00021917,2]
[339689770,1727869845093,-500.0,0.00021917,2]
[339689772,1727869845103,-2958.79,0.00021917,2]
[339689774,1727869845114,-500.0,0.00021917,2]
[339689776,1727869845124,-500.0,0.00021917,2]
[339689778,1727869845134,-503.76860637,0.00021917,2]
[339689780,1727869845144,-769.4,0.00021917,2]
[339689782,1727869845155,-737.81,0.00021917,2]
[339689784,1727869845164,-920.12,0.00021917,2]
[339689786,1727869845174,-4214.73,0.00021917,2]
[339689788,1727869845184,-500.0,0.00021917,2]
[339689790,1727869845194,-3969.74,0.00021917,2]
[339689792,1727869845204,-500.0,0.00021917,2]
[339689794,1727869845214,-500.0,0.00021917,2]
[339689795,1727869845223,-642.53,0.00021917,2]
[339689797,1727869845233,-551.82621788,0.00021917,2]
[339689800,1727869845243,-500.0,0.00021917,2]
[339689802,1727869845254,-4693.28,0.00021917,2]
[339689804,1727869845263,-1981.48,0.00021917,2]
[339689806,1727869845273,-500.0,0.00021917,2]
[339689808,1727869845284,-769.22,0.00021917,2]
[339689810,1727869845294,-500.0,0.00021917,2]
[339689812,1727869845303,-1333.72,0.00021917,2]
[339689814,1727869845314,-500.0,0.00021917,2]
[339689815,1727869845324,-971.65,0.00021917,2]
[339689817,1727869845334,-500.0,0.00021917,2]
[339689819,1727869845344,-500.0,0.00021917,2]
[339689822,1727869845355,-500.0,0.00021917,2]
[339689824,1727869845365,-500.0,0.00021917,2]
[339689826,1727869845376,-4781.7,0.00021917,2]
[339689828,1727869845386,-500.0,0.00021917,2]
[339689830,1727869845397,-1840.41,0.00021917,2]
[339689832,1727869845407,-311.86505428,0.00021917,2]
[339689833,1727869845417,-3256.68,0.00021917,2]
[339689835,1727869845426,-500.0,0.00021917,2]
[339689837,1727869845437,-500.0,0.00021917,2]
[339689839,1727869845448,-500.0,0.00021917,2]
[339689841,1727869845459,-503.52143504,0.00021917,2]
[339689843,1727869845469,-949.52,0.00021917,2]
[339689845,1727869845479,-500.0,0.00021917,2]
[339689847,1727869845489,-1052.75,0.00021917,2]
[339689849,1727869845498,-500.0,0.00021917,2]
[339689851,1727869845508,-1139.3,0.00021917,2]
[339689853,1727869845517,-501.65676786,0.00021917,2]
[339689855,1727869845527,-1499.88,0.00021917,2]
[339689857,1727869845538,-500.0,0.00021917,2]
[339689859,1727869845548,-3896.36,0.00021917,2]
[339689861,1727869845558,-500.0,0.00021917,2]
[339689863,1727869845569,-837.15,0.00021917,2]
[339689865,1727869845579,-632.59322256,0.00021917,2]
[339689867,1727869845590,-500.0,0.00021917,2]
[339689869,1727869845601,-500.0,0.00021917,2]
[339689871,1727869845612,-500.0,0.00021917,2]
[339689873,1727869845622,-500.0,0.00021917,2]
[339689875,1727869845633,-706.42,0.00021917,2]
[339689877,1727869845642,-1586.71,0.00021917,2]
[339689879,1727869845652,-500.0,0.00021917,2]
[339689881,1727869845661,-2633.91,0.00021917,2]
[339689883,1727869845671,-500.0,0.00021917,2]
[339689884,1727869845682,-1238.3,0.00021917,2]
[339689886,1727869845692,-625.64,0.00021917,2]
[339689888,1727869845704,-500.0,0.00021917,2]
[339689890,1727869845715,-1209.21,0.00021917,2]
[339689892,1727869845725,-1377.7,0.00021917,2]
[339689894,1727869845735,-1229.98,0.00021917,2]
[339689896,1727869845745,-1490.73,0.00021917,2]
[339689898,1727869845755,-500.0,0.00021917,2]
[339689900,1727869845766,-500.0,0.00021917,2]
[339689902,1727869845775,-500.0,0.00021917,2]
[339689904,1727869845785,-2367.9,0.00021917,2]
[339689906,1727869845795,-821.89,0.00021917,2]
[339689908,1727869845804,-500.0,0.00021917,2]
[339689910,1727869845813,-1174.03,0.00021917,2]
[339689912,1727869845823,-500.0,0.00021917,2]
[339689914,1727869845834,-500.0,0.00021917,2]
[339689916,1727869845843,-500.0,0.00021917,2]
[339689918,1727869845853,-847.46,0.00021917,2]
[339689920,1727869845862,-500.0,0.00021917,2]
[339689922,1727869845872,-500.0,0.00021917,2]
[339689924,1727869845881,-500.0,0.00021917,2]
[339689925,1727869845891,-500.0,0.00021917,2]
[339689927,1727869845901,-536.04,0.00021917,2]
[339689929,1727869845914,-545.49,0.00021917,2]
[339689931,1727869845923,-500.0,0.00021917,2]
[339689933,1727869845933,-718.29,0.00021917,2]
[339689935,1727869845942,-1000.0,0.00021917,2]
[339689937,1727869845954,-669.98,0.00021917,2]
[339689939,1727869845963,-500.0,0.00021917,2]
[339689941,1727869845972,-500.0,0.00021917,2]
[339689943,1727869845982,-596.18,0.00021917,2]
[339689945,1727869845992,-500.0,0.00021917,2]
[339689947,1727869846001,-500.0,0.00021917,2]
[339689949,1727869846011,-731.9,0.00021917,2]
[339689962,1727869846130,-1746.5,0.00021917,2]
[339689964,1727869846139,-500.0,0.00021917,2]
[339689966,1727869846149,-1675.75,0.00021917,2]
[339689968,1727869846159,-2492.76,0.00021917,2]
[339689970,1727869846168,-1021.85,0.00021917,2]
[339689972,1727869846177,-2147.45,0.00021917,2]
[339689973,1727869846186,-666.4,0.00021917,2]
[339689975,1727869846195,-1805.45,0.00021917,2]
[339689977,1727869846207,-500.0,0.00021917,2]
[339689979,1727869846225,-500.0,0.00021917,2]
[339689981,1727869846234,-767.65,0.00021917,2]
[339689983,1727869846243,-1399.04,0.00021917,2]
[339689985,1727869846252,-500.33224376,0.00021917,2]
[339689987,1727869846261,-500.0,0.00021917,2]
[339689989,1727869846271,-500.0,0.00021917,2]
[339689991,1727869846280,-2569.52,0.00021917,2]
[339689993,1727869846290,-3554.36,0.00021917,2]
[339689995,1727869846299,-370.14552553,0.00021917,2]
[339689997,1727869846308,-500.0,0.00021917,2]
[339689999,1727869846317,-1114.6,0.00021917,2]
[339690001,1727869846326,-462.60675086,0.00021917,2]
[339690003,1727869846335,-500.0,0.00021917,2]
[339690005,1727869846344,-2281.6,0.00021917,2]
[339690007,1727869846354,-500.0,0.00021917,2]
[339690009,1727869846363,-2024.94,0.00021917,2]
[339690011,1727869846372,-1898.19,0.00021917,2]
[339690013,1727869846383,-2537.56,0.00021917,2]
[339690015,1727869846394,-769.35,0.00021917,2]
[339690016,1727869846404,-500.0,0.00021917,2]
[339690017,1727869846413,-500.0,0.00021917,2]
[339690018,1727869846422,-500.0,0.00021917,2]
[339690019,1727869846432,-628.45,0.00021917,2]
[339690020,1727869846441,-597.78744585,0.00021917,2]
[339690021,1727869846451,-531.82,0.00021917,2]
[339690022,1727869846461,-1115.9,0.00021917,2]
[339690023,1727869846470,-637.83,0.00021917,2]
[339690024,1727869846479,-1589.06,0.00021917,2]
[339690025,1727869846488,-500.0,0.00021917,2]
[339690026,1727869846498,-690.75,0.00021917,2]
[339690027,1727869846507,-1606.12,0.00021917,2]
[339690028,1727869846516,-2547.67,0.00021917,2]
[339690030,1727869846525,-500.0,0.00021917,2]
[339690032,1727869846534,-500.0,0.00021917,2]
[339690034,1727869846543,-500.0,0.00021917,2]
[339690036,1727869846552,-833.08,0.00021917,2]
[339690037,1727869846562,-1174.4,0.00021917,2]
[339690039,1727869846572,-500.0,0.00021917,2]
[339690041,1727869846581,-2149.44,0.00021917,2]
[339690043,1727869846591,-628.01,0.00021917,2]
[339690045,1727869846601,-500.0,0.00021917,2]
[339690047,1727869846611,-846.9,0.00021917,2]
[339690050,1727869846626,-863.26,0.00021917,2]
[339690052,1727869846636,-651.99,0.00021917,2]
[339690054,1727869846645,-500.0,0.00021917,2]
[339690056,1727869846655,-500.0,0.00021917,2]
[339690058,1727869846665,-2757.68,0.00021917,2]
[339690060,1727869846675,-500.0,0.00021917,2]
[339690061,1727869846685,-603.14,0.00021917,2]
[339690063,1727869846695,-500.0,0.00021917,2]
[339690065,1727869846711,-1696.1,0.00021917,2]
[339690067,1727869846721,-985.26,0.00021917,2]
[339690069,1727869846731,-500.0,0.00021917,2]
[339690071,1727869846740,-500.0,0.00021917,2]
[339690073,1727869846750,-300.0,0.00021917,2]
[339690075,1727869846759,-653.8,0.00021917,2]
[339690077,1727869846769,-1267.6,0.00021917,2]
[339690078,1727869846778,-3039.66,0.00021917,2]
[339690080,1727869846787,-500.0,0.00021917,2]
[339690082,1727869846797,-500.0,0.00021917,2]
[339690084,1727869846807,-500.0,0.00021917,2]
[339690086,1727869846816,-500.0,0.00021917,2]
[339690088,1727869846826,-501.68352446,0.00021917,2]
[339690090,1727869846835,-1289.3,0.00021917,2]
[339690092,1727869846845,-312.90961722,0.00021917,2]
[339690094,1727869846855,-2047.61,0.00021917,2]
[339690095,1727869846865,-500.0,0.00021917,2]
[339690097,1727869846874,-1504.84,0.00021917,2]
[339690099,1727869846884,-981.63,0.00021917,2]
[339690101,1727869846893,-854.69,0.00021917,2]
[339690103,1727869846903,-500.0,0.00021917,2]
[339690105,1727869846916,-500.0,0.00021917,2]
[339690107,1727869846926,-500.0,0.00021917,2]
[339690109,1727869846936,-500.0,0.00021917,2]
[339690111,1727869846946,-1547.4,0.00021917,2]
[339690113,1727869846959,-500.0,0.00021917,2]
[339690115,1727869846968,-500.0,0.00021917,2]
[339690117,1727869846978,-500.0,0.00021917,2]
[339690119,1727869846988,-1749.84,0.00021917,2]
[339690121,1727869846997,-1355.56,0.00021917,2]
[339690123,1727869847009,-500.0,0.00021917,2]
[339690125,1727869847018,-1280.36,0.00021917,2]
[339690127,1727869847029,-1502.59,0.00021917,2]
[339690129,1727869847039,-1145.46,0.00021917,2]
[339690131,1727869847049,-2100.16,0.00021917,2]
[339690133,1727869847059,-3721.85,0.00021917,2]
[339690135,1727869847068,-500.0,0.00021917,2]
[339690137,1727869847078,-511.37443263,0.00021917,2]
[339690139,1727869847087,-2297.01,0.00021917,2]
[339690141,1727869847097,-525.24,0.00021917,2]
[339690143,1727869847106,-500.0,0.00021917,2]
[339690145,1727869847115,-500.0,0.00021917,2]
[339690147,1727869847125,-500.0,0.00021917,2]
[339690149,1727869847134,-1550.17,0.00021917,2]
[339690151,1727869847144,-500.0,0.00021917,2]
[339690153,1727869847153,-1243.26,0.00021917,2]
[339690155,1727869847162,-500.0,0.00021917,2]
[339690157,1727869847171,-500.0,0.00021917,2]
[339690159,1727869847180,-500.0,0.00021917,2]
[339690161,1727869847190,-500.0,0.00021917,2]
[339690163,1727869847199,-500.0,0.00021917,2]
[339690164,1727869847209,-500.0,0.00021917,2]
[339690166,1727869847218,-500.0,0.00021917,2]
[339690168,1727869847227,-1732.3,0.00021917,2]
[339690170,1727869847236,-500.0,0.00021917,2]
[339690172,1727869847246,-924.39,0.00021917,2]
[339690174,1727869847255,-500.0,0.00021917,2]
[339690176,1727869847265,-500.0,0.00021917,2]
[339690178,1727869847274,-500.0,0.00021917,2]
[339690180,1727869847283,-2892.79,0.00021917,2]
[339690182,1727869847293,-1860.9,0.00021917,2]
[339690184,1727869847303,-1136.61,0.00021917,2]
[339690185,1727869847312,-500.0,0.00021917,2]
[339690188,1727869847322,-500.0,0.00021917,2]
[339690189,1727869847333,-1271.74,0.00021917,2]
[339690191,1727869847342,-2319.1,0.00021917,2]
[339690193,1727869847351,-1380.93,0.00021917,2]
[339690195,1727869847360,-1091.67,0.00021917,2]
[339690197,1727869847370,-516.76,0.00021917,2]
[339690199,1727869847379,-500.0,0.00021917,2]
[339690201,1727869847390,-500.0,0.00021917,2]
[339690203,1727869847399,-500.0,0.00021917,2]
[339690205,1727869847409,-1681.47,0.00021917,2]
[339690207,1727869847418,-551.68,0.00021917,2]
[339690209,1727869847430,-1011.97,0.00021917,2]
[339690211,1727869847439,-500.0,0.00021917,2]
[339690213,1727869847449,-595.76,0.00021917,2]
[339690215,1727869847459,-4234.94,0.00021917,2]
[339690217,1727869847469,-500.0,0.00021917,2]
[339690219,1727869847478,-500.0,0.00021917,2]
[339690221,1727869847488,-807.3,0.00021917,2]
[339690223,1727869847497,-767.29,0.00021917,2]
[339690224,1727869847506,-500.0,0.00021917,2]
[339690226,1727869847515,-500.0,0.00021917,2]
[339690228,1727869847525,-4437.35,0.00021917,2]
[339690230,1727869847534,-500.0,0.00021917,2]
[339690232,1727869847543,-500.0,0.00021917,2]
[339690234,1727869847552,-681.37,0.00021917,2]
[339690236,1727869847561,-500.0,0.00021917,2]
[339690237,1727869847571,-500.0,0.00021917,2]
[339690239,1727869847580,-500.0,0.00021917,2]
[339690241,1727869847590,-810.27,0.00021917,2]
[339690243,1727869847599,-500.0,0.00021917,2]
[339690245,1727869847610,-500.0,0.00021917,2]
[339690247,1727869847619,-2090.86,0.00021917,2]
[339690248,1727869847628,-500.0,0.00021917,2]
[339690250,1727869847638,-1313.14,0.00021917,2]
[339690252,1727869847647,-1262.83,0.00021917,2]
[339690254,1727869847656,-500.0,0.00021917,2]
[339690256,1727869847665,-1018.63,0.00021917,2]
[339690258,1727869847675,-504.51,0.00021917,2]
[339690260,1727869847685,-570.29,0.00021917,2]
[339690262,1727869847695,-736.45,0.00021917,2]
[339690264,1727869847706,-953.5,0.00021917,2]
[339690266,1727869847715,-598.89,0.00021917,2]
[339690268,1727869847725,-1201.78,0.00021917,2]
[339690270,1727869847735,-500.0,0.00021917,2]
[339690272,1727869847745,-500.0,0.00021917,2]
[339690274,1727869847754,-4680.19,0.00021917,2]
[339690276,1727869847763,-892.18,0.00021917,2]
[339690278,1727869847772,-679.8,0.00021917,2]
[339690280,1727869847781,-690.14,0.00021917,2]
[339690281,1727869847791,-500.0,0.00021917,2]
[339690283,1727869847800,-500.0,0.00021917,2]
[339690285,1727869847809,-496.58470568,0.00021917,2]
[339690287,1727869847819,-500.0,0.00021917,2]
[339690289,1727869847829,-1031.13,0.00021917,2]
[339690290,1727869847838,-2119.21,0.00021917,2]
[339690292,1727869847848,-3248.18,0.00021917,2]
[339690294,1727869847858,-500.0,0.00021917,2]
[339690296,1727869847867,-500.0,0.00021917,2]
[339690298,1727869847876,-500.0,0.00021917,2]
[339690300,1727869847886,-500.0,0.00021917,2]
[339690302,1727869847895,-6175.19,0.00021917,2]
[339690304,1727869847904,-500.0,0.00021917,2]
[339690306,1727869847917,-500.0,0.00021917,2]
[339690308,1727869847927,-1838.42,0.00021917,2]
[339690310,1727869847936,-507.21,0.00021917,2]
[339690312,1727869847945,-2667.03,0.00021917,2]
[339690314,1727869847956,-500.0,0.00021917,2]
[339690316,1727869847965,-500.0,0.00021917,2]
[339690317,1727869847980,-500.0,0.00021917,2]
[339690319,1727869847990,-500.0,0.00021917,2]
[339690321,1727869848000,-1672.93,0.00021917,2]
[339690322,1727869848009,-500.0,0.00021917,2]
[339690323,1727869848020,-500.0,0.00021917,2]
[339690325,1727869848030,-500.0,0.00021917,2]
[339690327,1727869848039,-1041.73,0.00021917,2]
[339690329,1727869848048,-504.01013002,0.00021917,2]
[339690331,1727869848058,-500.0,0.00021917,2]
[339690333,1727869848068,-608.41,0.00021917,2]
[339690335,1727869848078,-529.98,0.00021917,7]
[339690337,1727869848087,-500.0,0.00021917,2]
[339690339,1727869848096,-5053.49,0.00021917,2]
[339690341,1727869848106,-500.0,0.00021917,2]
[339690343,1727869848116,-2022.31,0.00021917,2]
[339690345,1727869848126,-500.0,0.00021917,2]
[339690347,1727869848135,-500.0,0.00021917,2]
[339690349,1727869848144,-500.0,0.00021917,2]
[339690351,1727869848154,-500.0,0.00021917,2]
[339690353,1727869848164,-500.0,0.00021917,2]
[339690354,1727869848173,-500.0,0.00021917,2]
[339690356,1727869848183,-500.0,0.00021917,2]
[339690358,1727869848193,-500.0,0.00021917,2]
[339690360,1727869848203,-500.0,0.00021917,2]
[339690362,1727869848212,-1730.57,0.00021917,2]
[339690364,1727869848222,-500.0,0.00021917,2]
[339690366,1727869848231,-538.29,0.00021917,30]
[339690368,1727869848242,-4318.93,0.00021917,2]
[339690369,1727869848251,-502.65580895,0.00021917,2]
[339690371,1727869848261,-2246.33,0.00021917,2]
[339690373,1727869848271,-500.0,0.00021917,2]
[339690375,1727869848280,-1020.6,0.00021917,2]
[339690377,1727869848290,-500.0,0.00021917,2]
[339690379,1727869848299,-500.0,0.00021917,2]
[339690381,1727869848309,-500.0,0.00021917,2]
[339690383,1727869848319,-500.0,0.00021917,2]
[339690385,1727869848328,-500.0,0.00021917,2]
[339690387,1727869848337,-500.0,0.00021917,2]
[339690389,1727869848348,-3153.21,0.00021917,2]
[339690391,1727869848358,-500.0,0.00021917,2]
[339690393,1727869848367,-506.11,0.00021917,2]
[339690395,1727869848377,-712.16,0.00021917,2]
[339690397,1727869848387,-2970.4,0.00021917,2]
[339690399,1727869848396,-985.3,0.00021917,2]
[339690401,1727869848406,-2465.15,0.00021917,2]
[339690404,1727869848416,-2086.78,0.00021917,2]
[339690406,1727869848426,-500.0,0.00021917,2]
[339690408,1727869848436,-500.0,0.00021917,2]
[339690410,1727869848445,-1090.88,0.00021917,2]
[339690411,1727869848455,-500.0,0.00021917,2]
[339690414,1727869848464,-500.0,0.00021917,2]
[339690415,1727869848473,-500.0,0.00021917,2]
[339690417,1727869848483,-500.0,0.00021917,2]
[339690419,1727869848493,-895.01,0.00021917,2]
[339690422,1727869848503,-500.0,0.00021917,2]
[339690424,1727869848514,-777.65,0.00021917,2]
[339690426,1727869848523,-3118.93,0.00021917,2]
[339690427,1727869848533,-987.1,0.00021917,2]
[339690429,1727869848542,-500.0,0.00021917,2]
[339690431,1727869848552,-500.0,0.00021917,2]
[339690432,1727869848561,-1136.65,0.00021917,2]
[339690433,1727869848571,-500.0,0.00021917,2]
[339690434,1727869848580,-1467.44,0.00021917,2]
[339690435,1727869848590,-1162.12,0.00021917,2]
[339690436,1727869848601,-500.0,0.00021917,2]
[339690437,1727869848610,-500.0,0.00021917,2]
[339690438,1727869848620,-506.89,0.00021917,2]
[339690439,1727869848630,-500.0,0.00021917,2]
[339690440,1727869848640,-500.0,0.00021917,2]
[339690441,1727869848649,-500.0,0.00021917,2]
[339690442,1727869848658,-500.0,0.00021917,2]
[339690443,1727869848668,-579.97,0.00021917,2]
[339690445,1727869848677,-500.0,0.00021917,2]
[339690447,1727869848686,-940.83,0.00021917,2]
[339690449,1727869848695,-500.0,0.00021917,2]
[339690451,1727869848704,-500.0,0.00021917,2]
[339690453,1727869848714,-500.0,0.00021917,2]
[339690455,1727869848723,-500.0,0.00021917,2]
[339690457,1727869848732,-1971.31,0.00021917,2]
[339690459,1727869848741,-500.0,0.00021917,2]
[339690460,1727869848750,-500.0,0.00021917,2]
[339690462,1727869848760,-1121.76,0.00021917,2]
[339690464,1727869848769,-623.67,0.00021917,2]
[339690466,1727869848779,-2765.39,0.00021917,2]
[339690468,1727869848789,-1361.74,0.00021917,2]
[339690470,1727869848798,-965.87,0.00021917,2]
[339690472,1727869848808,-2074.26,0.00021917,2]
[339690474,1727869848818,-1445.85,0.00021917,2]
[339690476,1727869848827,-771.13,0.00021917,2]
[339690478,1727869848836,-500.0,0.00021917,2]
[339690480,1727869848846,-500.0,0.00021917,2]
[339690482,1727869848855,-500.0,0.00021917,2]
[339690484,1727869848864,-500.0,0.00021917,2]
[339690486,1727869848874,-998.13,0.00021917,2]
[339690488,1727869848883,-2391.46,0.00021917,2]
[339690490,1727869848892,-2900.51,0.00021917,2]
[339690492,1727869848901,-2290.5,0.00021917,2]
[339690493,1727869848913,-500.0,0.00021917,2]
[339690495,1727869848922,-500.0,0.00021917,2]
[339690497,1727869848932,-500.0,0.00021917,2]
[339690499,1727869848941,-500.0,0.00021917,2]
[339690501,1727869848951,-751.75,0.00021917,2]
[339690503,1727869848963,-500.0,0.00021917,2]
[339690506,1727869849003,-500.0,0.00021917,2]
[339690508,1727869849012,-1477.46,0.00021917,2]
[339690511,1727869849022,-500.0,0.00021917,2]
[339690513,1727869849035,-1360.75,0.00021917,2]
[339690515,1727869849044,-1019.35,0.00021917,2]
[339690517,1727869849053,-500.0,0.00021917,2]
[339690518,1727869849063,-1434.88,0.00021917,2]
[339690520,1727869849073,-1781.17,0.00021917,2]
[339690522,1727869849083,-500.0,0.00021917,2]
[339690524,1727869849093,-700.73,0.00021917,2]
[339690526,1727869849103,-864.57,0.00021917,2]
[339690528,1727869849114,-500.0,0.00021917,2]
[339690530,1727869849124,-500.0,0.00021917,2]
[339690532,1727869849133,-500.0,0.00021917,2]
[339690534,1727869849142,-924.55,0.00021917,2]
[339690536,1727869849151,-1589.64,0.00021917,2]
[339690538,1727869849161,-500.0,0.00021917,2]
[339690540,1727869849170,-500.02795688,0.00021917,2]
[339690542,1727869849180,-500.0,0.00021917,2]
[339690544,1727869849189,-500.0,0.00021917,2]
[339690546,1727869849198,-3116.69,0.00021917,2]
[339690548,1727869849210,-1543.89,0.00021917,2]
[339690550,1727869849220,-4404.8,0.00021917,2]
[339690552,1727869849229,-19290.58,0.00021917,2]
[339690554,1727869849239,-560.29,0.00021917,2]
[339690556,1727869849248,-2831.71,0.00021917,2]
[339690558,1727869849258,-614.13,0.00021917,2]
[339690560,1727869849268,-1040.87,0.00021917,2]
[339690562,1727869849277,-1535.99,0.00021917,2]
[339690564,1727869849287,-500.0,0.00021917,2]
[339690566,1727869849297,-500.0,0.00021917,2]
[339690568,1727869849307,-1223.94,0.00021917,2]
[339690570,1727869849316,-610.3,0.00021917,2]
[339690572,1727869849327,-500.0,0.00021917,2]
[339690573,1727869849337,-500.0,0.00021917,2]
[339690575,1727869849347,-658.85,0.00021917,2]
[339690577,1727869849357,-500.0,0.00021917,2]
[339690579,1727869849367,-605.17648371,0.00021917,2]
[339690581,1727869849377,-500.0,0.00021917,2]
[339690584,1727869849388,-551.95,0.00021917,2]
[339690586,1727869849399,-1515.98,0.00021917,2]
[339690587,1727869849409,-729.29,0.00021917,2]
[339690590,1727869849420,-579.63,0.00021917,2]
[339690592,1727869849430,-1288.21,0.00021917,2]
[339690594,1727869849441,-500.0,0.00021917,2]
[339690596,1727869849451,-1133.36,0.00021917,2]
[339690598,1727869849467,-1772.2,0.00021917,2]
[339690600,1727869849477,-500.0,0.00021917,2]
[339690602,1727869849487,-507.18,0.00021917,2]
[339690604,1727869849497,-808.68656627,0.00021917,2]
[339690606,1727869849508,-500.0,0.00021917,2]
[339690608,1727869849518,-1312.48,0.00021917,2]
[339690610,1727869849528,-603.38081934,0.00021917,2]
[339690612,1727869849538,-701.64,0.00021917,2]
[339690614,1727869849548,-665.99,0.00021917,2]
[339690616,1727869849557,-598.59,0.00021917,2]
[339690618,1727869849567,-500.0,0.00021917,2]
[339690620,1727869849577,-808.47,0.00021917,2]
[339690622,1727869849587,-513.44,0.00021917,2]
[339690624,1727869849598,-500.0,0.00021917,2]
[339690626,1727869849609,-500.0,0.00021917,2]
[339690628,1727869849619,-1157.26,0.00021917,2]
[339690630,1727869849629,-647.94,0.00021917,2]
[339690632,1727869849638,-500.0,0.00021917,2]
[339690634,1727869849648,-587.79,0.00021917,2]
[339690635,1727869849658,-500.0,0.00021917,2]
[339690637,1727869849669,-500.0,0.00021917,2]
[339690639,1727869849678,-2470.24,0.00021917,2]
[339690641,1727869849687,-553.22,0.00021917,2]
[339690643,1727869849697,-500.0,0.00021917,2]
[339690645,1727869849711,-934.27,0.00021917,2]
[339690647,1727869849720,-151.0,0.00021917,2]
[339690649,1727869849730,-151.924842,0.00021917,2]
[339690651,1727869849739,-500.0,0.00021917,2]
[339690653,1727869849749,-727.36,0.00021917,2]
[339690655,1727869849758,-500.0,0.00021917,2]
[339690657,1727869849768,-648.66,0.00021917,2]
[339690659,1727869849778,-521.34,0.00021917,2]
[339690661,1727869849787,-849.78,0.00021917,2]
[339690663,1727869849796,-1657.63,0.00021917,2]
[339690665,1727869849806,-500.0,0.00021917,2]
[339690667,1727869849815,-3112.95,0.00021917,2]
[339690668,1727869849825,-1267.73,0.00021917,2]
[339690670,1727869849834,-500.0,0.00021917,2]
[339690672,1727869849844,-678.87,0.00021917,2]
[339690674,1727869849854,-515.08,0.00021917,2]